Cogmind - Beta 14 @@@ ROGUE MODE // 2025.03.22 @ 10:47:22 Player: Lunace Result: Self-destructed Performance ------------- Evolutions (5) 2500 Regions Visited (12) 2400 Robots Destroyed (78) 390 Value Destroyed (2785) 2785 Prototype IDs (17) 340 Alien Tech Used (1) 200 Bonus (1817) 1817 TOTAL SCORE: 10432 Bonus ------- High Alert Combat Kills 235 Follower Combat Kills 982 Registered with UFD 300 Met Zhirov 300 Cogmind --------- Core Integrity 863/1000 Matter 272/300 Energy 315/315 System Corruption 11% Temperature Cool (0) Movement Rolling (80) Ox1 Location -4/Proximity Caves Parts ------- > --- POWER (2) -------- Neutrino Core > --- PROPULSION (4) --- Overtuned Huge Scrapsphere (fused) Overtuned Huge Scrapsphere > --- UTILITY (7) ------ Advanced Heat Sink Advanced Heat Sink Large Storage Unit Advanced Signal Interpreter Particle Accelerator Experimental Weapon Shielding Improved Medium Armor Plating > --- WEAPON (4) ------- Wave Gun Autogun Makeshift Axe > --- INVENTORY (15) --- Improved Medium Treads Overtuned Huge Scrapsphere Advanced Energy Well (500) Advanced Sensor Array Faulty Experimental Sensor Array Improved Shield Generator Advanced Hacking Suite Authchip [R/Combat] Long-range Tractor Beam Transdimensional Reconstructor Compact Ion Cannon DRS Beacon (Ready) Peak State ------------ > --- POWER ------------ Neutrino Core Neutrino Core > --- PROPULSION ------- Overtuned Huge Scrapsphere Overtuned Huge Scrapsphere > --- UTILITY ---------- Scrap Suit Improved Cryofiber Web Advanced Heat Sink Large Storage Unit Layered Medium Armor Plating Improved Shield Generator > --- WEAPON ----------- Wave Gun Wave Gun Overtuned Coil Gun Tiamat Missile Launcher > --- INVENTORY -------- Improved Medium Treads Overtuned Huge Scrapsphere Advanced Heat Sink Advanced Heat Sink Advanced Heat Sink Advanced Sensor Array Experimental Sensor Array Advanced Signal Interpreter Authchip [R/Combat] Long-range Tractor Beam Compact Ion Cannon Gauss Rifle CPS Tube DRS Beacon [Rating: 97] Favorites ----------- Power Cooled Ion Engine Engine Cooled Ion Engine Power Core Neutrino Core Propulsion Improved Treads Treads Improved Treads Leg Carbon-fiber Leg Wheel Overtuned Huge Scrapsphere Utility Large Storage Unit Device Improved Heat Sink Storage Large Storage Unit Processor Advanced Signal Interpreter Protection Layered Medium Armor Plating Weapon Flamer Energy Gun Improved EM Shotgun Energy Cannon Compact Ion Cannon Ballistic Gun Overtuned Coil Gun Ballistic Cannon Enhanced Gauss Cannon Launcher Long-range Missile Launcher Special Weapon Flamer Slashing Weapon Makeshift Axe Build | -11 -10 -10 -9 -9 -9 -9 -6 -5 -5 -5 -5 -4 ------- Run | Yrd Mat Min Mat Sto Rec Scr Fac Fac Upp Upp Zhi Pro Slots Evolved 10 | . . . 2 . . . 6 2 . . . . Power 1 | . . . . . . . 1 . . . . . Propulsion 2 | . . . 1 . . . 1 . . . . . Utility 5 | . . . 1 . . . 3 1 . . . . Weapon 2 | . . . . . . . 1 1 . . . . Parts Attached 98 | 7 9 8 11 8 . 5 8 21 4 12 5 . Power 13 | 1 1 3 2 1 . . 1 3 . 1 . . Engine 7 | 1 1 2 2 1 . . . . . . . . Core 6 | . . 1 . . . . 1 3 . 1 . . Reactor . | . . . . . . . . . . . . . Propulsion 19 | 2 . 2 3 3 . 1 1 6 . . 1 . Treads 13 | 2 . 2 . 3 . 1 1 4 . . . . Leg 3 | . . . 3 . . . . . . . . . Wheel 3 | . . . . . . . . 2 . . 1 . Hover . | . . . . . . . . . . . . . Flight . | . . . . . . . . . . . . . Utility 33 | 2 4 . 2 . . 1 4 5 3 8 4 . Device 21 | 1 2 . 1 . . 1 4 4 3 4 1 . Storage 5 | 1 1 . 1 . . . . . . 1 1 . Processor 1 | . . . . . . . . . . 1 . . Hackware . | . . . . . . . . . . . . . Protection 6 | . 1 . . . . . . 1 . 2 2 . Artifact . | . . . . . . . . . . . . . Weapon 33 | 2 4 3 4 4 . 3 2 7 1 3 . . Energy Gun 15 | 2 2 2 4 3 . 1 . . . 1 . . Energy Cannon 2 | . . . . . . . . 1 1 . . . Ballistic Gun 7 | . 2 1 . 1 . . . 3 . . . . Ballistic Cannon . | . . . . . . . . . . . . . Launcher 3 | . . . . . . . . 3 . . . . Special Weapon 5 | . . . . . . 2 2 . . 1 . . Impact Weapon . | . . . . . . . . . . . . . Slashing Weapon 1 | . . . . . . . . . . 1 . . Piercing Weapon . | . . . . . . . . . . . . . Special Melee Weapon . | . . . . . . . . . . . . . Unidentified Prototypes 12 | . . . 2 3 . . 1 2 . . 4 . Corrupted Parts 1 | . . . . . . . . . . . 1 . System Corruption 6 | . . . . . . . . . . . 6 . Parts Lost 21 | . 2 5 . . . . 1 . 1 12 . . Power 4 | . 1 1 . . . . . . . 2 . . Propulsion 2 | . . 2 . . . . . . . . . . Utility 8 | . 1 . . . . . 1 . . 6 . . Weapon 7 | . . 2 . . . . . . 1 4 . . Highest Loss Streak 10 | . 2 3 . . . . 1 . 1 10 . . To Critical Strikes . | . . . . . . . . . . . . . Average Slot Usage (%) 91 | . 99 99 88 99 100 100 78 86 81 64 72 . Engine 8 | . 14 13 11 11 11 11 6 . . . . . Core 2 | . . . . . . . . 10 11 1 5 . Treads 20 | . 28 27 17 11 33 33 24 18 . . . . Leg 2 | . . . 7 21 . . . . . . . . Wheel 2 | . . . . . . . . 2 11 11 11 . Device 19 | . 11 14 20 22 22 22 19 19 23 18 17 . Storage 9 | . 14 14 11 11 11 11 6 5 5 5 5 . Protection 1 | . 2 . . . . . . 3 5 5 7 . Energy Gun 12 | . 20 11 21 22 22 13 . 4 11 7 5 . Ballistic Gun 3 | . 7 16 . . . . . 7 6 4 5 . Special Weapon 4 | . . . . . . 8 19 5 . 2 . . Peak Build Rating 97 | 7 9 11 24 29 26 31 55 97 97 97 85 . Average Rating 39 | 4 7 9 16 26 26 28 47 74 96 71 78 . On Entrance 41 | . 7 9 10 24 26 26 31 55 95 97 75 84 Naked Turns . | . . . . . . . . . . . . . Heaviest Build 89 | 14 22 20 37 37 37 38 52 89 89 87 60 . Greatest Support 113 | 40 40 40 45 69 69 76 99 113 40 40 40 . Greatest Overweight (x) 4 | . . . 1 1 . . . 4 2 3 2 . Average Overweight (x) . | . . . . . . . . 1 1 1 1 . Largest Inventory Capacity 15 | 8 10 10 15 15 15 15 15 15 15 15 15 . Average Capacity 13 | 7 9 10 10 15 15 15 15 15 15 15 15 . Most Carried 15 | 1 9 10 10 15 15 15 14 15 15 15 13 . Average Carried 12 | . 5 8 8 13 15 14 10 12 14 11 11 . Final Capacity 15 | 8 10 10 15 15 15 15 15 15 15 15 15 15 Final Carried 15 | 1 8 10 10 15 15 15 10 15 15 10 13 13 Class Distribution -------------------- 52% | Mutant 20% | Scavenger-Scrapper 10% | Pyromaniac-Gunner 7% | Scavenger-Mutant 4% | Scavenger-Tank 3% | Commander-Mutant Dominant Class ---------------- Mutant | -10/Materials Mutant | -10/Mines Scavenger-Mutant | -9/Materials Mutant | -9/Storage Mutant | -9/Recycling Mutant | -9/Scraptown Pyromaniac-Gunner | -6/Factory Scavenger-Tank | -5/Factory Scavenger-Scrapper | -5/Upper Caves Scavenger-Scrapper | -5/Upper Caves Scavenger-Scrapper | -5/Zhirov Scavenger-Scrapper | -4/Proximity Caves Resources | -11 -10 -10 -9 -9 -9 -9 -6 -5 -5 -5 -5 -4 ----------- Run | Yrd Mat Min Mat Sto Rec Scr Fac Fac Upp Upp Zhi Pro Matter Collected 2830 | 231 200 199 40 153 . . 763 587 241 358 58 . Remotely . | . . . . . . . . . . . . . Salvage Created 3356 | 18 305 309 116 732 . . 286 467 489 520 114 . Parts 151 | 3 22 27 2 41 . . 2 12 18 24 . . Haulers Intercepted 7 | . 2 . 1 4 . . . . . . . . Recyclers Shooed . | . . . . . . . . . . . . . Parts Field Recycled . | . . . . . . . . . . . . . Retrieved Matter . | . . . . . . . . . . . . . Parts Self-Destructed 35 | . . . . . . . . . 16 19 . . Prevented 3 | . . . . . . . . . . 3 . . Kills | -11 -10 -10 -9 -9 -9 -9 -6 -5 -5 -5 -5 -4 ------- Run | Yrd Mat Min Mat Sto Rec Scr Fac Fac Upp Upp Zhi Pro Combat Hostiles Destroyed 63 | . 7 13 1 9 . . 5 8 10 10 . . Guns 52 | . 7 13 1 9 . . . 4 8 10 . . Cannons 3 | . . . . . . . 1 . 2 . . . AOE 4 | . . . . . . . . 4 . . . . Classes Destroyed 12 | 1 4 . 1 3 . . . 1 2 . . . Worker 1 | . . . . 1 . . . . . . . . Tunneler 1 | 1 . . . . . . . . . . . . Hauler 7 | . 2 . 1 4 . . . . . . . . Recycler 2 | . . . . 1 . . 1 . . . . . Mechanic 1 | . . . . . . . . 1 . . . . Operator 1 | . . . . 1 . . . . . . . . Watcher 2 | . 1 . . 1 . . . . . . . . Swarmer 21 | . 3 9 . 3 . . . . 1 5 . . Grunt 29 | . 4 4 . 1 . . 5 6 5 4 . . Sentry 10 | . . . 1 5 . . . 2 1 1 . . Hunter 2 | . . . . . . . . . 2 . . . Behemoth 1 | . . . . . . . . . 1 . . . Packrat 1 | . . . . . . . . . . 1 . . Best Kill Streak 6 | 1 2 3 1 4 . . 3 3 6 4 . . Combat Bots Only 6 | . 2 3 1 3 . . 2 3 6 4 . . Max Kills in Single Turn 2 | 1 1 2 1 1 . . 1 2 2 1 . . Gunslinging 1 | . . 1 . . . . . . . . . . Exploded 1 | . . . . . . . . 1 . . . . Melee . | . . . . . . . . . . . . . Uniques/NPCs Destroyed . | . . . . . . . . . . . . . Combat | -11 -10 -10 -9 -9 -9 -9 -6 -5 -5 -5 -5 -4 -------- Run | Yrd Mat Min Mat Sto Rec Scr Fac Fac Upp Upp Zhi Pro Hostile Shots Fired 385 | . 63 58 6 39 . . 21 23 53 122 . . Missed 112 | . 10 16 3 14 . . 4 8 19 38 . . Damage Taken 4248 | . 611 412 30 295 . . 321 248 544 1787 . . Core 345 | . 34 79 9 48 . . 38 17 66 54 . . Absorbed by Shields 341 | . . . 11 111 . . . 88 131 . . . Regen/Repaired (Parts) 75 | . . . . . . . 29 10 25 11 . . Core Remaining (%) 83 | 100 . 54 . . . 85 95 . . . . . Volleys Fired 220 | 1 38 33 6 36 . . 16 20 28 42 . . Largest 4 | 2 2 2 2 2 . . 3 4 4 4 . . Hottest 300 | 80 100 100 90 90 . . 300 237 284 251 . . Shots Fired 519 | 2 70 66 12 72 . . 48 58 96 95 . . Gun 424 | 2 70 66 12 72 . . . 49 76 77 . . Cannon 33 | . . . . . . . . . 17 16 . . Launcher 12 | . . . . . . . . 9 3 . . . Special 50 | . . . . . . . 48 . . 2 . . Kinetic 177 | . 42 35 . 1 . . . 25 34 40 . . Thermal 233 | 1 17 31 . . . . 48 24 59 53 . . Explosive 12 | . . . . . . . . 9 3 . . . Electromagnetic 95 | 1 11 . 12 71 . . . . . . . . Robot Hit Streak 27 | 1 8 7 14 27 . . 20 8 8 13 . . Robot Miss Streak 8 | . 3 3 2 8 . . 2 5 3 7 . . Penetration Max 1 | . . . . . . . . . 1 . . . Secondary Targets 6 | . 2 2 . 1 . . . . 1 . . . Max Gunslinging Chain 1 | . 1 1 . 1 . . . . 1 . . . Shots Hit Robots 356 | 1 49 44 11 57 . . 38 35 57 60 4 . Core Hits 158 | 1 17 19 5 35 . . 13 23 25 19 1 . Critical Kills . | . . . . . . . . . . . . . Critical Parts Destroyed 1 | . . . . . . . . 1 . . . . Critical Strikes 13 | . . 3 . . . . 2 2 1 5 . . Burn 9 | . . 3 . . . . 2 1 1 2 . . Destroy 1 | . . . . . . . . 1 . . . . Blast 3 | . . . . . . . . . . 3 . . Melee Attacks 11 | . . . . . . . . . . 7 4 . Impact . | . . . . . . . . . . . . . Slashing 11 | . . . . . . . . . . 7 4 . Piercing . | . . . . . . . . . . . . . Sneak Attacks 1 | . . . . . . . . . . 1 . . Combat Hostiles . | . . . . . . . . . . . . . Follow-up Attacks . | . . . . . . . . . . . . . Damage Inflicted 8557 | 15 659 550 159 1170 . . 416 1659 1989 1661 279 . Guns 5379 | 15 618 550 159 921 . . . 690 1250 1176 . . Cannons 582 | . . . . . . . . . 305 277 . . Explosions 1693 | . 41 . . 249 . . . 969 434 . . . Melee 487 | . . . . . . . . . . 208 279 . Ramming . | . . . . . . . . . . . . . Kinetic 1984 | . 349 273 . . . . . 342 556 464 . . Thermal 3470 | . 192 277 . 249 . . 416 348 999 989 . . Explosive 1403 | . . . . . . . . 969 434 . . . Electromagnetic 1213 | 15 118 . 159 921 . . . . . . . . Impact . | . . . . . . . . . . . . . Slashing 487 | . . . . . . . . . . 208 279 . Piercing . | . . . . . . . . . . . . . Highest Corruption 11 | . . . . . . . 1 5 5 5 11 . Average Corruption 4 | . . . . . . . 1 1 5 5 5 . Corruption Purged . | . . . . . . . . . . . . . Corruption Blocked . | . . . . . . . . . . . . . Effects 37 | . . . . . . . . 2 20 9 6 . Message Errors 6 | . . . . . . . . . 4 1 1 . Matter Fused 13 | . . . . . . . . . 8 4 1 . Heat Flow Errors 5 | . . . . . . . . . 1 2 2 . Energy Discharges 3 | . . . . . . . . 1 2 . . . Parts Rejected 1 | . . . . . . . . . 1 . . . Parts Fused 1 | . . . . . . . . . . . 1 . Data Loss (minor) 4 | . . . . . . . . 1 1 1 1 . Data Loss (major) 1 | . . . . . . . . . 1 . . . Alerts 1 | . . . . . . . . . . 1 . . Weapon Failures 2 | . . . . . . . . . 2 . . . Overload Shots . | . . . . . . . . . . . . . Overflow Damage 93 | . 21 . . 30 . . . . 4 36 2 . Projectiles . | . . . . . . . . . . . . . Explosions 55 | . 21 . . 30 . . . . 4 . . . Melee 38 | . . . . . . . . . . 36 2 . Knockbacks . | . . . . . . . . . . . . . Impact . | . . . . . . . . . . . . . Kinetic . | . . . . . . . . . . . . . Secondary . | . . . . . . . . . . . . . Self-Inflicted Damage 88 | . . . . 78 . . . . 10 . . . Shots 4 | . . . . 3 . . . . 1 . . . Rammed . | . . . . . . . . . . . . . Targets Rammed . | . . . . . . . . . . . . . Kicked . | . . . . . . . . . . . . . Crushed . | . . . . . . . . . . . . . Highest Temperature 504 | 18 369 23 . 7 . . 195 42 464 504 138 . Average Temperature 152 | 12 174 9 . 3 . . 80 26 197 195 70 . Received Heat Transfer 1536 | . 336 126 6 85 . . 165 66 115 637 . . Effects 5 | . 1 . . . . . . . . 4 . . Shutdowns 1 | . . . . . . . . . . 1 . . Energy Bleed 1 | . 1 . . . . . . . . . . . Interference 3 | . . . . . . . . . . 3 . . Siege Activations . | . . . . . . . . . . . . . Robots Corrupted 1 | . . . . 1 . . . . . . . . Combat Hostiles . | . . . . . . . . . . . . . Parts Fried 11 | . . . 3 8 . . . . . . . . Impact Corruptions . | . . . . . . . . . . . . . Robots Melted 5 | . . . . . . . 5 . . . . . Combat Hostiles 4 | . . . . . . . 4 . . . . . Parts Melted 15 | . 2 . . . . . 10 . 2 1 . . Heat Transferred 9019 | . 470 1036 . 379 . . 3360 592 1554 1628 . . Parts Sabotaged . | . . . . . . . . . . . . . Parts Stolen . | . . . . . . . . . . . . . Parts Stripped . | . . . . . . . . . . . . . Power Chain Reactions 7 | . 1 . . 6 . . . . . . . . Alert | -11 -10 -10 -9 -9 -9 -9 -6 -5 -5 -5 -5 -4 ------- Run | Yrd Mat Min Mat Sto Rec Scr Fac Fac Upp Upp Zhi Pro Peak Influence 1189 | 5 127 192 94 573 326 . 85 1189 . . . . Initial 207 | . 3 42 42 39 207 . . 1 . . . . Average 187 | 1 75 95 65 192 200 . 32 592 . . . . Maximum Alert Level 4 | . . . . 2 1 . . 4 . . . . Low Security (%) 77 | 100 100 100 100 67 40 . 100 29 . . . . Level 1 10 | . . . . 26 59 . . 3 . . . . Level 2 2 | . . . . 5 . . . 7 . . . . Level 3 8 | . . . . . . . . 49 . . . . Level 4 1 | . . . . . . . . 10 . . . . Level 5 . | . . . . . . . . . . . . . High Security . | . . . . . . . . . . . . . Max Security . | . . . . . . . . . . . . . Squads Dispatched 10 | . . . . 3 . . 2 5 . . . . Investigation . | . . . . . . . . . . . . . Extermination 1 | . . . . . . . . 1 . . . . Reinforcement 5 | . . . . 1 . . 2 2 . . . . Assault 3 | . . . . 2 . . . 1 . . . . Garrison 1 | . . . . . . . . 1 . . . . Intercept . | . . . . . . . . . . . . . Searches Triggered . | . . . . . . . . . . . . . Construction Impeded 1 | . . . . 1 . . . . . . . . Haulers Reinforced 2 | . . . . . . . 1 1 . . . . Active Scanning Responses . | . . . . . . . . . . . . . Cargo Convoy Interrupts . | . . . . . . . . . . . . . Stealth | -11 -10 -10 -9 -9 -9 -9 -6 -5 -5 -5 -5 -4 --------- Run | Yrd Mat Min Mat Sto Rec Scr Fac Fac Upp Upp Zhi Pro Distress Signals 3 | . . . . 3 . . . . . . . . Communications Jammed . | . . . . . . . . . . . . . Distress Signals . | . . . . . . . . . . . . . Times Spotted 98 | . 13 13 1 21 . . 8 20 10 12 . . Peak Tracking Total 9 | . 4 3 1 9 . . 3 4 4 6 . . Tactical Retreats 5 | . 1 . . 2 . . . . . 2 . . Traps | -11 -10 -10 -9 -9 -9 -9 -6 -5 -5 -5 -5 -4 ------- Run | Yrd Mat Min Mat Sto Rec Scr Fac Fac Upp Upp Zhi Pro Traps Triggered 3 | . . . . 1 . . 1 1 . . . . Indirectly . | . . . . . . . . . . . . . Trap Hack Attempts . | . . . . . . . . . . . . . Triggered . | . . . . . . . . . . . . . Disarmed . | . . . . . . . . . . . . . Reprogrammed . | . . . . . . . . . . . . . Reused . | . . . . . . . . . . . . . Traps Extracted . | . . . . . . . . . . . . . Installed . | . . . . . . . . . . . . . Triggered 1 | . . . . . . . . . . 1 . . Machines | -11 -10 -10 -9 -9 -9 -9 -6 -5 -5 -5 -5 -4 ---------- Run | Yrd Mat Min Mat Sto Rec Scr Fac Fac Upp Upp Zhi Pro Machines Disabled 24 | . . . . 1 . . . 22 1 . . . Max in Single Turn 1 | . . . . 1 . . . 1 1 . . . Garrison Access 1 | . . . . . . . . 1 . . . . Machines Repaired . | . . . . . . . . . . . . . Machines Dismantled . | . . . . . . . . . . . . . Machines Sabotaged . | . . . . . . . . . . . . . Overloaded Fab Kills . | . . . . . . . . . . . . . Hacking | -11 -10 -10 -9 -9 -9 -9 -6 -5 -5 -5 -5 -4 --------- Run | Yrd Mat Min Mat Sto Rec Scr Fac Fac Upp Upp Zhi Pro Machines Accessed 30 | . 4 . 1 10 9 2 2 1 . . 1 . Terminals 21 | . 4 . 1 10 5 . . 1 . . . . Fabricators . | . . . . . . . . . . . . . Repair Stations 1 | . . . . . . . 1 . . . . . Recycling Units 4 | . . . . . 4 . . . . . . . Scanalyzers . | . . . . . . . . . . . . . Garrison Access 1 | . . . . . . . 1 . . . . . Total Hacks 66 | . 10 . 2 22 18 4 5 4 . . 1 . Successful 35 | . 4 . . 8 13 4 2 3 . . 1 . Failed 31 | . 6 . 2 14 5 . 3 1 . . . . Catastrophic 4 | . 2 . 1 1 . . . . . . . . Database Lockouts . | . . . . . . . . . . . . . Manual 42 | . 9 . 2 15 13 . . 2 1 . . . Terminals 52 | . 10 . 2 22 14 . . 4 . . . . Fabricators . | . . . . . . . . . . . . . Repair Stations 3 | . . . . . . . 3 . . . . . Recycling Units 4 | . . . . . 4 . . . . . . . Scanalyzers . | . . . . . . . . . . . . . Garrison Access 2 | . . . . . . . 2 . . . . . Terminal Hacks 19 | . 1 . . 5 6 4 . 2 . . 1 . Record 4 | . . . . . . 3 . . . . 1 . Part Schematic 1 | . . . . . 1 . . . . . . . Open Door 4 | . . . . 4 . . . . . . . . Branch Access Points 2 | . . . . 1 . . . 1 . . . . Terminal Index 2 | . 1 . . . . . . 1 . . . . Alert Level 2 | . . . . . 2 . . . . . . . Unreport Threat 2 | . . . . . 2 . . . . . . . Zone Layout 1 | . . . . . 1 . . . . . . . Derelict Proto ID Bank 1 | . . . . . . 1 . . . . . . Fabricator Hacks . | . . . . . . . . . . . . . Repair Station Hacks 2 | . . . . . . . 2 . . . . . Scan Component 1 | . . . . . . . 1 . . . . . Repair 1 | . . . . . . . 1 . . . . . Recycling Unit Hacks . | . . . . . . . . . . . . . Scanalyzer . | . . . . . . . . . . . . . Garrison Access Hacks . | . . . . . . . . . . . . . Unauthorized Hacks 14 | . 3 . . 3 7 . . 1 . . . . Terminals 10 | . 3 . . 3 3 . . 1 . . . . Botnet 9 | . 2 . . 3 3 . . 1 . . . . Operators 1 | . 1 . . . . . . . . . . . Fabricators . | . . . . . . . . . . . . . Repair Stations . | . . . . . . . . . . . . . Recycling Units 4 | . . . . . 4 . . . . . . . Tunnel 4 | . . . . . 4 . . . . . . . Scanalyzers . | . . . . . . . . . . . . . Garrison Access . | . . . . . . . . . . . . . Data Cores Recovered 1 | . . . . 1 . . . . . . . . Used . | . . . . . . . . . . . . . Hacking Detections 22 | . 4 . 1 9 5 . 2 1 . . . . Full Trace Events . | . . . . . . . . . . . . . Feedback Events . | . . . . . . . . . . . . . Feedback Blocked . | . . . . . . . . . . . . . Robot Schematics Acquired . | . . . . . . . . . . . . . Robots Built . | . . . . . . . . . . . . . Authchips . | . . . . . . . . . . . . . Time . | . . . . . . . . . . . . . Total Robot Build Rating . | . . . . . . . . . . . . . Part Schematics Acquired 1 | . . . . . 1 . . . . . . . Parts Built . | . . . . . . . . . . . . . Authchips . | . . . . . . . . . . . . . Time . | . . . . . . . . . . . . . Total Part Build Rating . | . . . . . . . . . . . . . Parts Repaired 1 | . . . . . . . 1 . . . . . Time 32 | . . . . . . . 32 . . . . . Parts Recycled . | . . . . . . . . . . . . . Recycled Matter . | . . . . . . . . . . . . . Retrieved Matter . | . . . . . . . . . . . . . Retrieved Components . | . . . . . . . . . . . . . Parts Scanalyzed . | . . . . . . . . . . . . . Part Schematics Acquired . | . . . . . . . . . . . . . Parts Damaged . | . . . . . . . . . . . . . Bothacking | -11 -10 -10 -9 -9 -9 -9 -6 -5 -5 -5 -5 -4 ------------ Run | Yrd Mat Min Mat Sto Rec Scr Fac Fac Upp Upp Zhi Pro Used RIF Installer . | . . . . . . . . . . . . . Robots Hacked . | . . . . . . . . . . . . . Non-combat . | . . . . . . . . . . . . . Combat . | . . . . . . . . . . . . . Robot Hacks Applied . | . . . . . . . . . . . . . Relay Couplers Released 1 | . . . . . . . . 1 . . . . Machine Destruction 1 | . . . . . . . . 1 . . . . Fabnet Peak Effective % . | . . . . . . . . . . . . . Robots Rewired 1 | . . . . . . . 1 . . . . . Allies Hacked . | . . . . . . . . . . . . . Hacks Repelled . | . . . . . . . . . . . . . Allies | -11 -10 -10 -9 -9 -9 -9 -6 -5 -5 -5 -5 -4 -------- Run | Yrd Mat Min Mat Sto Rec Scr Fac Fac Upp Upp Zhi Pro Total Allies 18 | . . . . 12 . . 1 5 . . . . Largest Group 12 | . . . . 12 4 4 4 5 . . . . Highest-Rated Group 238 | . . . . 150 78 78 78 238 . . . . Highest-Rated Ally 50 | . . . . 31 31 31 31 50 . . . . Total Orders . | . . . . . . . . . . . . . Ally Attacks 248 | . . . . 95 3 . 27 123 . . . . Total Damage 4019 | . . . . 876 43 . 285 2815 . . . . Kills 36 | . . . . 11 2 . 1 22 . . . . Allies Corrupted 2 | . . . . . . . . 2 . . . . Allies Melted . | . . . . . . . . . . . . . Intel | -11 -10 -10 -9 -9 -9 -9 -6 -5 -5 -5 -5 -4 ------- Run | Yrd Mat Min Mat Sto Rec Scr Fac Fac Upp Upp Zhi Pro Robot Analysis Total . | . . . . . . . . . . . . . Derelict Logs Recovered 1 | . . . . . . . . . 1 . . . Drone Launches . | . . . . . . . . . . . . . Drone Recoveries . | . . . . . . . . . . . . . Exploration | -11 -10 -10 -9 -9 -9 -9 -6 -5 -5 -5 -5 -4 ------------- Run | Yrd Mat Min Mat Sto Rec Scr Fac Fac Upp Upp Zhi Pro Turns Passed 6753 | 68 611 653 282 692 336 1648 594 640 635 445 149 . Spaces Moved 4149 | 36 284 331 155 384 211 1016 271 382 604 332 143 . Core 3 | 3 . . . . . . . . . . . . Treads 2626 | 33 284 331 109 133 211 1016 271 238 . . . . Legs 297 | . . . 46 251 . . . . . . . . Wheels 1223 | . . . . . . . . 144 604 332 143 . Hover . | . . . . . . . . . . . . . Flight . | . . . . . . . . . . . . . Fastest Speed 50 | 50 160 160 120 120 160 160 160 90 80 70 80 . Average Speed 136 | 150 160 160 148 134 160 160 160 139 89 85 89 . Slowest Speed 240 | 160 160 160 190 240 160 160 160 160 90 100 90 . Overloaded Moves . | . . . . . . . . . . . . . Propulsion Burnouts . | . . . . . . . . . . . . . Robots Hopped . | . . . . . . . . . . . . . Cave-ins Triggered . | . . . . . . . . . . . . . Exploration Rate (%) 43 | 3 44 83 14 72 56 85 7 17 76 47 59 2 Regions Visited 12 Branch Regions 8 Pre-discovered Areas 5 | . . . . 1 4 . . . . . . . Known Exits Taken 5 | . . . . 1 . . . 1 1 1 1 . Unknown Exits Taken 7 | 1 1 1 1 . 1 1 1 . . . . . Scrap Searched 11 | . . 1 . . . 6 . . 2 2 . . Spaces Dug . | . . . . . . . . . . . . . Terrain Destroyed 191 | . 2 . . 27 . . . 103 48 11 . . Melee . | . . . . . . . . . . . . . Projectile 45 | . . . . . . . . 12 22 11 . . AOE 146 | . 2 . . 27 . . . 91 26 . . . Terrain Rammed . | . . . . . . . . . . . . . Walls Destroyed . | . . . . . . . . . . . . . Machines Disabled . | . . . . . . . . . . . . . Actions | -11 -10 -10 -9 -9 -9 -9 -6 -5 -5 -5 -5 -4 --------- Run | Yrd Mat Min Mat Sto Rec Scr Fac Fac Upp Upp Zhi Pro Total 4801 | 44 372 391 197 499 210 1044 348 463 652 422 159 . Wait 156 | . 21 7 2 32 . . 48 5 14 27 . . Move 4137 | 35 283 330 154 383 210 1015 270 381 603 331 142 . Hop . | . . . . . . . . . . . . . Pick Up 70 | 1 12 9 9 14 . 9 2 10 . 1 3 . Fast Attach 50 | 7 3 1 6 6 . 3 2 12 . 6 4 . Attach 25 | . 2 5 . 1 . . 6 2 1 6 2 . Detach 12 | . 1 . . 2 . . 2 4 1 . 2 . Swap 24 | . 4 2 5 1 . 2 . 7 3 . . . Drop 87 | . 8 4 15 16 . 15 1 22 2 2 2 . Fire 220 | 1 38 33 6 36 . . 16 20 28 42 . . Melee 11 | . . . . . . . . . . 7 4 . Ram . | . . . . . . . . . . . . . Kick . | . . . . . . . . . . . . . Crush . | . . . . . . . . . . . . . Escape Stasis 5 | . . . . 5 . . . . . . . . Rewire 4 | . . . . 3 . . 1 . . . . . Trap . | . . . . . . . . . . . . . Miscellaneous . | . . . . . . . . . . . . . Route ------- -11/Scrapyard -10/Materials -10/Mines (discovered 2 exits: *Mat x2) -9/Materials -9/Storage -9/Recycling -9/Scraptown (discovered 2 exits: *Fac x2) -6/Factory -5/Factory (discovered 3 exits: [*Fac] / *Upp x2) -5/Upper Caves -5/Upper Caves -5/Zhirov -4/Proximity Caves History --------- Turn | Location | Event 8 | -11/Scrapyard | Discovered new exit (range 15) 69 | -11/Scrapyard | Entered Materials 305 | -10/Materials | Build established: Mutant 611 | -10/Materials | Discovered new exit (range 16) 680 | -10/Materials | Entered Mines 752 | -10/Mines | Discovered new exit (range 9) 967 | -10/Mines | Found a damaged Exp. Sensor Array with a note attached 970 | -10/Mines | Found Prototype Device 1091 | -10/Mines | Lost 3 parts (1p2n) 1286 | -10/Mines | Discovered new exit (range 8) 1333 | -10/Mines | Entered Materials 1333 | -9/Materials | Evolved 2 slots: Propulsion x1, Utility x1 1333 | -9/Materials | Discovered new exit (range 15) 1359 | -9/Materials | Build established: Scavenger-Mutant 1615 | -9/Materials | Entered Storage 1857 | -9/Storage | Build established: Mutant 2016 | -9/Storage | Assisted by bots powering up and referring to "LRC-V3" 2114 | -9/Storage | Learned location of Armory (-4) 2133 | -9/Storage | Met a pair of Derelict thieves 2245 | -9/Storage | Lost 5 allies 2257 | -9/Storage | Identified exit to Recycling 2301 | -9/Storage | Used back door to open Recycling access 2307 | -9/Storage | Entered Recycling 2307 | -9/Recycling | Accompanied by 4 allies 2605 | -9/Recycling | Scanned before Scraplab entrance 2627 | -9/Recycling | Entered Scraplab 2640 | -9/Recycling | Discovered new exit (range 3) 2643 | -9/Recycling | Entered Scraptown 2643 | -9/Scraptown | Accompanied by 4 allies 2891 | -9/Scraptown | Discovered new exit (range 13) 2995 | -9/Scraptown | Visited Comm Corps 3059 | -9/Scraptown | Visited The Evicted 3082 | -9/Scraptown | Visited Cave Peace 3099 | -9/Scraptown | Visited Bundlers 3220 | -9/Scraptown | Visited Assassins FH 3427 | -9/Scraptown | Visited UFD Registry 3427 | -9/Scraptown | Registered with UFD as "Deathwalker" 3447 | -9/Scraptown | Visited Shadow of the Wyrm 3456 | -9/Scraptown | Visited Awakened 3520 | -9/Scraptown | Visited Science Guys 3571 | -9/Scraptown | Visited Curators Association 3610 | -9/Scraptown | Visited Supply Room 3822 | -9/Scraptown | Visited Scrap Suit Storage 3874 | -9/Scraptown | Visited Scrapoid Pod Storage 3897 | -9/Scraptown | Found Scrapoid Pod 3930 | -9/Scraptown | Found Scrap Suit 3984 | -9/Scraptown | Visited Derelict Rescue Squad 3994 | -9/Scraptown | Found DRS Beacon 4025 | -9/Scraptown | Visited Junk Repository 4086 | -9/Scraptown | Visited LU-1G1's Boring Crew 4112 | -9/Scraptown | Visited Observation Area 4285 | -9/Scraptown | Discovered new exit (range 5) 4291 | -9/Scraptown | Entered Factory 4291 | -6/Factory | Accompanied by 4 allies 4291 | -6/Factory | Evolved 6 slots: Power x1, Propulsion x1, Utility x3, Weapon x1 4292 | -6/Factory | Identified Exp. Sensor Array 4402 | -6/Factory | Lost 4 allies 4587 | -6/Factory | Build established: Pyromaniac-Gunner 4762 | -6/Factory | Repaired Flamer 4848 | -6/Factory | Discovered new exit (range 5) 4885 | -6/Factory | Entered another Factory area 4885 | -5/Factory | Evolved 2 slots: Utility x1, Weapon x1 4887 | -5/Factory | Scrapoid Pod released 05F05-D (x5) 5051 | -5/Factory | Garrison activated, responded to threat 5077 | -5/Factory | Spotted B-75 Beast 5088 | -5/Factory | Allies destroyed B-75 Beast 5196 | -5/Factory | Identified exit to Upper Caves 5419 | -5/Factory | Discovered new exit (range 15) 5525 | -5/Factory | Entered Upper Caves 5571 | -5/Upper Caves | Identified exit to Upper Caves 5609 | -5/Upper Caves | Build established: Scavenger-Scrapper 5681 | -5/Upper Caves | Attracted the attention of an 0b10 checkpoint 5801 | -5/Upper Caves | Spotted B-75 Beast 5969 | -5/Upper Caves | Encountered a Warlord checkpoint 6052 | -5/Upper Caves | Destroyed B-75 Beast 6107 | -5/Upper Caves | Acquired the password to a Derelict Tinkerer's latest research 6160 | -5/Upper Caves | Entered another Upper Caves area 6160 | -5/Upper Caves | Spotted B-75 Beast 6295 | -5/Upper Caves | Lost 10 parts (2p5u3w) 6408 | -5/Upper Caves | Attracted the attention of an 0b10 checkpoint 6596 | -5/Upper Caves | Discovered new exit (range 10) 6604 | -5/Upper Caves | Identified exit to Zhirov 6605 | -5/Upper Caves | Entered Zhirov 6605 | -5/Zhirov | Discovered new exit (range 3) 6622 | -5/Zhirov | Met Zhirov 6642 | -5/Zhirov | Zhirov requested help retrieving the SGEMP Prototype 6656 | -5/Zhirov | Found Alien Artifact 6672 | -5/Zhirov | Identified Integrated Reactor 6672 | -5/Zhirov | Installed Integrated Reactor, increased core energy generation (+10) 6684 | -5/Zhirov | Found Alien Artifact 6752 | -5/Zhirov | Identified exit to Proximity Caves 6754 | -5/Zhirov | System corruption reached 10% 6754 | -5/Zhirov | Entered Proximity Caves 6754 | -4/Proximity Caves | Self-destructed Last Messages --------------- 06698_ Identified Adv. Energy Well. 06700_ System corrupted: Ovr. Huge Scrapsphere fused. 06701_ Acquired Prototype Protection. 06701_ Identified Exp. Weapon Shielding. 06703_ Acquired Adv. Hacking Suite. 06707_ Sneak attack on B-86 Titan. 06711_ Destroyed Railgun. 06713_ Sneak attack on B-86 Titan. 06713_ B-86 Titan destroyed. 06715_ Ovr. Huge Scrapsphere repairs itself (+28). 06715_ Acquired 58 matter. 06731_ System corrupted: Component data lost. 06752_ EXIT=IDENTIFIED: PROXIMITY CAVES 06753_ Integrated Corrupted Ovr. Huge Scrapsphere (+6). 06754_ System corrupted: Heat flow error (+104). LOCATION=PROXIMITY CAVES GOAL=ESCAPE Map ----- +----------------------------------------------------+ | | | | | | | ??????????????????????????????????????????? | | ??????????????????????????????????????????? | | ??????????????????????????????????????????? | | ??????????????????????????????????????????? | | ??????????????????????????????????????????? | | ??????????????????????????????????????????? | | ??????????????????????????????????????????? | | ??????????????????????????????????????????? | | ??????????????????????????????????????????? | | ??????????????????##??????????????????????? | | ????????????????## ??????????????????????? | | ????????????????#b ?#????????????????????? | | ????????????????# g ? ????????????????????? | | ????????????????# ????????????????????? | | ????????????????# l #????????????????????? | | ???????????????## #g##???????????????????? | | ???????????????# # ##??????????????????? | | ???????????????# ##?????????????????? | | ??????????????## ??????????????????? | | ??????????????# ???????????????????? | | ??????????????# #????????????????????? | | ???????????????# ##???????????????????? | | ???????????????# @ #???????????????????? | | ???????????????## #??????????????????? | | ????????????????## #??????????????????? | | ?????????????????## ##??????????????????? | | ???????????????????# #???????????????????? | | ???????????????????? #???????????????????? | | ???????????????????? #???????????????????? | | ????????????????????? #???????????????????? | | ????????????????????? #???????????????????? | | ????????????????????? #???????????????????? | | ?????????????????????? ???????????????????? | | ?????????????????????? ???????????????????? | | ???????????????????????#??????????????????? | | ??????????????????????????????????????????? | | ??????????????????????????????????????????? | | ??????????????????????????????????????????? | | ??????????????????????????????????????????? | | ??????????????????????????????????????????? | | ??????????????????????????????????????????? | | ??????????????????????????????????????????? | | ??????????????????????????????????????????? | | ??????????????????????????????????????????? | | ??????????????????????????????????????????? | | ??????????????????????????????????????????? | | ??????????????????????????????????????????? | +----------------------------------------------------+ Best States ------------- Heat Dissipation 116 Energy Generation 33 Energy Capacity 815 Matter Stores 300 Matter Capacity 300 Sight Range 16 Terrain Scan Density 10 Base Temperature (-) 150 Armor Coverage 450 Weapon Shielding 90 Evasion (%) 55 Recoil Reduction 4 Authchip Count 3 Item Schematics ----------------- Mace | -9/Recycling | Hacked Robot Schematics ------------------ None Fabricated ------------ Nothing Alien Tech Used ----------------- Integrated Reactor Achievements -------------- None Challenges ------------ None Game ------ Seed AdvancedBarrageLegs Manual? 0 Play Time 00:54:15 Cumulative 391.7 hours Start 2025.02.15 @ 22:54:09 End 2025.03.22 @ 10:47:22 Sessions 3 Manual Loads 0 Difficulty Rogue Special Mode None Game No. 390 Rogue 385 Adventurer 5 Explorer 0 Win Type - Total 9 Types 6/0/0/3/0/0/0/0/0 Lore% 80 Gallery% 84 Achievement% 71 Wizard Run 0 Options --------- Layout 1 ASCII 0 Keyboard 0 Movement Arrows Keybinds 0 Fullscreen 1 Font 24/Terminus Map View 50x35 Zoom Use 0% Tactical HUD 1 Map Filters NONE Filters NONE Steam 1 RUN: 6812c123-a4ab-4d57-a0c6-7398e63db711